Cogmind - Beta 13 @@@ ROGUE MODE // 2024.04.28 @ 21:47:54 Player: BionicBot Result: Destroyed by Y-45 Defender with Beam Rifle Performance ------------- Evolutions (1) 500 Regions Visited (2) 400 Robots Destroyed (31) 155 Value Destroyed (696) 696 Prototype IDs (0) 0 Alien Tech Used (0) 0 Bonus (0) 0 TOTAL SCORE: 1751 Bonus ------- None Cogmind --------- Core Integrity 0/400 Matter 84/300 Energy 100/100 System Corruption 2% Temperature Cool (9) Movement Core (350) Ox6 Location -9/Materials Parts ------- > --- POWER (1) -------- (None) > --- PROPULSION (4) --- (None) > --- UTILITY (2) ------ Large Storage Unit > --- WEAPON (2) ------- (None) > --- INVENTORY (15) --- Improved Ion Engine Improved Ion Engine Improved Ion Engine Improved Heat Sink Medium Storage Unit Huge Storage Unit Large Battery (200) Structural Scanner Propulsion Shielding Utility Shielding Hardened Medium Armor Plating Hardened Medium Armor Plating Heavy EM Pulse Gun Heavy Assault Rifle Shotgun Peak State ------------ > --- POWER ------------ Improved Ion Engine > --- PROPULSION ------- Airjet Airjet Airjet Airjet > --- UTILITY ---------- Large Storage Unit Structural Scanner > --- WEAPON ----------- Assault Rifle Light Cannon > --- INVENTORY -------- Improved Ion Engine Improved Ion Engine Improved Ion Engine Improved Heat Sink Medium Storage Unit Huge Storage Unit Large Battery Structural Scanner Propulsion Shielding Utility Shielding Hardened Medium Armor Plating Heavy Assault Rifle Shotgun Grenade Launcher [Rating: 20] Favorites ----------- Power Ion Engine Engine Ion Engine Propulsion Aluminum Leg Leg Aluminum Leg Hover Unit Airjet Utility Structural Scanner Device Structural Scanner Storage Large Storage Unit Processor Signal Interpreter Weapon Small Laser Energy Gun Small Laser Ballistic Gun Assault Rifle Ballistic Cannon Light Cannon Launcher Grenade Launcher Build | -11 -10 -9 ------- Run | Yrd Mat Mat Slots Evolved 2 | . . 2 Power . | . . . Propulsion 2 | . . 2 Utility . | . . . Weapon . | . . . Parts Attached 41 | 5 27 9 Power 7 | 1 5 1 Engine 7 | 1 5 1 Core . | . . . Reactor . | . . . Propulsion 11 | 2 3 6 Treads . | . . . Leg 7 | 2 3 2 Wheel . | . . . Hover 4 | . . 4 Flight . | . . . Utility 13 | . 11 2 Device 5 | . 5 . Storage 7 | . 5 2 Processor 1 | . 1 . Hackware . | . . . Protection . | . . . Artifact . | . . . Weapon 10 | 2 8 . Energy Gun 5 | 1 4 . Energy Cannon . | . . . Ballistic Gun 3 | 1 2 . Ballistic Cannon 1 | . 1 . Launcher 1 | . 1 . Special Weapon . | . . . Impact Weapon . | . . . Slashing Weapon . | . . . Piercing Weapon . | . . . Special Melee Weapon . | . . . Unidentified Prototypes . | . . . Parts Lost 12 | . 4 8 Power 2 | . 1 1 Propulsion 4 | . . 4 Utility 2 | . 1 1 Weapon 4 | . 2 2 Highest Loss Streak 7 | . 2 7 To Critical Strikes . | . . . Average Slot Usage (%) 96 | . 97 90 Engine 12 | . 13 10 Leg 21 | . 28 4 Hover 8 | . . 32 Device 16 | . 18 10 Storage 7 | . 6 11 Processor 1 | . 1 . Energy Gun 11 | . 15 . Ballistic Gun 5 | . 4 10 Ballistic Cannon 2 | . . 10 Launcher 5 | . 7 . Naked Turns . | . . . Heaviest Build 33 | 6 31 33 Greatest Support 40 | 20 20 40 Greatest Overweight (x) 10 | . 1 10 Average Overweight (x) . | . . . Largest Inventory Capacity 25 | 5 25 25 Average Capacity 9 | 5 8 15 Most Carried 15 | 2 15 15 Average Carried 8 | . 6 14 Final Capacity 15 | 5 15 15 Final Carried 15 | 1 15 15 Class Distribution -------------------- 50% | Mutant 49% | Scavenger-Mutant Dominant Class ---------------- Scavenger-Mutant | -10/Materials Mutant | -9/Materials Resources | -11 -10 -9 ----------- Run | Yrd Mat Mat Matter Collected 614 | 268 285 61 Remotely . | . . . Salvage Created 737 | 45 562 130 Parts 53 | 1 36 16 Haulers Intercepted . | . . . Recyclers Shooed 1 | . . 1 Parts Field Recycled . | . . . Retrieved Matter . | . . . Parts Self-Destructed . | . . . Prevented . | . . . Kills | -11 -10 -9 ------- Run | Yrd Mat Mat Combat Hostiles Destroyed 21 | 1 14 6 Guns 17 | 1 12 4 Cannons 2 | . . 2 AOE 2 | . 2 . Classes Destroyed 7 | 1 6 . Worker 3 | . 3 . Builder 1 | . 1 . Recycler 1 | . 1 . Operator 1 | . 1 . Watcher 4 | . 3 1 Swarmer 7 | . 3 4 Grunt 14 | 1 11 2 Best Kill Streak 4 | 1 4 3 Combat Bots Only 3 | 1 3 3 Max Kills in Single Turn 2 | 1 2 1 Gunslinging . | . . . Exploded 1 | . 1 . Melee . | . . . Uniques/NPCs Destroyed . | . . . Combat | -11 -10 -9 -------- Run | Yrd Mat Mat Hostile Shots Fired 192 | 8 76 108 Missed 54 | 2 22 30 Damage Taken 1916 | 65 810 1041 Core 575 | . 161 414 Absorbed by Shields . | . . . Core Remaining (%) 67 | 100 35 . Volleys Fired 80 | 6 58 16 Largest 2 | 2 2 2 Hottest 105 | 60 105 55 Shots Fired 154 | 12 110 32 Gun 125 | 12 97 16 Cannon 16 | . . 16 Launcher 13 | . 13 . Special . | . . . Kinetic 62 | 6 24 32 Thermal 79 | 6 73 . Explosive 13 | . 13 . Electromagnetic . | . . . Robot Hit Streak 7 | 7 7 6 Robot Miss Streak 4 | 3 4 4 Penetration Max . | . . . Secondary Targets 2 | . 2 . Max Gunslinging Chain 1 | . 1 . Shots Hit Robots 87 | 8 63 16 Core Hits 52 | 2 38 12 Critical Kills 1 | . . 1 Critical Parts Destroyed . | . . . Critical Strikes 1 | . . 1 Destroy 1 | . . 1 Melee Attacks . | . . . Impact . | . . . Slashing . | . . . Piercing . | . . . Sneak Attacks . | . . . Combat Hostiles . | . . . Follow-up Attacks . | . . . Damage Inflicted 1777 | 96 1383 298 Guns 1005 | 96 795 114 Cannons 173 | . . 173 Explosions 584 | . 584 . Melee . | . . . Ramming 15 | . 4 11 Kinetic 547 | 64 196 287 Thermal 685 | 32 653 . Explosive 530 | . 530 . Electromagnetic . | . . . Impact . | . . . Slashing . | . . . Piercing . | . . . Highest Corruption 2 | . . 2 Average Corruption 2 | . . 2 Corruption Purged . | . . . Corruption Blocked . | . . . Overload Shots . | . . . Overflow Damage 30 | . 30 . Projectiles . | . . . Explosions 30 | . 30 . Melee . | . . . Knockbacks . | . . . Impact . | . . . Kinetic . | . . . Secondary . | . . . Self-Inflicted Damage 197 | . 195 2 Shots 4 | . 4 . Rammed 13 | . . 13 Targets Rammed 14 | . 1 13 Kicked 1 | . 1 . Crushed . | . . . Highest Temperature 141 | 36 141 51 Average Temperature 22 | 20 23 23 Received Heat Transfer 726 | 36 279 411 Siege Activations . | . . . Robots Corrupted . | . . . Combat Hostiles . | . . . Parts Fried . | . . . Impact Corruptions . | . . . Robots Melted . | . . . Combat Hostiles . | . . . Parts Melted 2 | . 2 . Heat Transferred 1556 | 75 1481 . Parts Sabotaged . | . . . Parts Stolen . | . . . Parts Stripped . | . . . Power Chain Reactions . | . . . Alert | -11 -10 -9 ------- Run | Yrd Mat Mat Peak Influence 280 | 20 280 216 Initial 66 | . 13 66 Average 95 | 3 103 89 Maximum Alert Level 1 | . 1 1 Low Security (%) 94 | 100 96 87 Level 1 5 | . 3 12 Level 2 . | . . . Level 3 . | . . . Level 4 . | . . . Level 5 . | . . . High Security . | . . . Max Security . | . . . Squads Dispatched 6 | . 5 1 Investigation 3 | . 3 . Extermination . | . . . Reinforcement 3 | . 2 1 Assault . | . . . Garrison . | . . . Intercept . | . . . Searches Triggered . | . . . Construction Impeded . | . . . Haulers Reinforced . | . . . Active Scanning Responses . | . . . Cargo Convoy Interrupts . | . . . Stealth | -11 -10 -9 --------- Run | Yrd Mat Mat Distress Signals 3 | . 1 2 Communications Jammed . | . . . Distress Signals . | . . . Times Spotted 38 | 1 21 16 Peak Tracking Total 5 | 1 3 5 Tactical Retreats 3 | . 1 2 Traps | -11 -10 -9 ------- Run | Yrd Mat Mat Traps Triggered 4 | . 4 . Indirectly . | . . . Trap Hack Attempts . | . . . Triggered . | . . . Disarmed . | . . . Reprogrammed . | . . . Reused . | . . . Traps Extracted . | . . . Installed . | . . . Triggered . | . . . Machines | -11 -10 -9 ---------- Run | Yrd Mat Mat Machines Disabled 3 | . 3 . Max in Single Turn 2 | . 2 . Machines Repaired . | . . . Machines Dismantled . | . . . Machines Sabotaged . | . . . Overloaded Fab Kills . | . . . Hacking | -11 -10 -9 --------- Run | Yrd Mat Mat Machines Accessed 6 | . 4 2 Terminals 4 | . 3 1 Fabricators . | . . . Repair Stations . | . . . Recycling Units 2 | . 1 1 Scanalyzers . | . . . Garrison Access . | . . . Total Hacks 16 | . 11 5 Successful 7 | . 5 2 Failed 9 | . 6 3 Catastrophic 1 | . 1 . Database Lockouts . | . . . Manual . | . . . Terminals 11 | . 8 3 Fabricators . | . . . Repair Stations . | . . . Recycling Units 5 | . 3 2 Scanalyzers . | . . . Garrison Access . | . . . Terminal Hacks 4 | . 3 1 Record 2 | . 2 . Alert Level 2 | . 1 1 Fabricator Hacks . | . . . Repair Station Hacks . | . . . Recycling Unit Hacks 3 | . 2 1 Report Inventory 2 | . 1 1 Retrieve Components 1 | . 1 . Scanalyzer . | . . . Garrison Access Hacks . | . . . Unauthorized Hacks . | . . . Terminals . | . . . Fabricators . | . . . Repair Stations . | . . . Recycling Units . | . . . Scanalyzers . | . . . Garrison Access . | . . . Data Cores Recovered . | . . . Used . | . . . Hacking Detections 4 | . 3 1 Full Trace Events . | . . . Feedback Events . | . . . Feedback Blocked . | . . . Robot Schematics Acquired . | . . . Robots Built . | . . . Authchips . | . . . Time . | . . . Total Robot Build Rating . | . . . Part Schematics Acquired . | . . . Parts Built . | . . . Authchips . | . . . Time . | . . . Total Part Build Rating . | . . . Parts Repaired . | . . . Time . | . . . Parts Recycled . | . . . Recycled Matter . | . . . Retrieved Matter . | . . . Retrieved Components 3 | . 3 . Parts Scanalyzed . | . . . Part Schematics Acquired . | . . . Parts Damaged . | . . . Bothacking | -11 -10 -9 ------------ Run | Yrd Mat Mat Used RIF Installer . | . . . Robots Hacked . | . . . Non-combat . | . . . Combat . | . . . Robot Hacks Applied . | . . . Relay Couplers Released . | . . . Fabnet Peak Effective % . | . . . Robots Rewired . | . . . Allies Hacked . | . . . Hacks Repelled . | . . . Allies | -11 -10 -9 -------- Run | Yrd Mat Mat Total Allies . | . . . Largest Group . | . . . Highest-Rated Group . | . . . Highest-Rated Ally . | . . . Total Orders . | . . . Ally Attacks . | . . . Total Damage . | . . . Kills . | . . . Allies Corrupted . | . . . Allies Melted . | . . . Intel | -11 -10 -9 ------- Run | Yrd Mat Mat Robot Analysis Total . | . . . Derelict Logs Recovered . | . . . Drone Launches . | . . . Drone Recoveries . | . . . Exploration | -11 -10 -9 ------------- Run | Yrd Mat Mat Turns Passed 2184 | 94 1536 554 Spaces Moved 1298 | 63 914 321 Core 23 | 20 . 3 Treads . | . . . Legs 995 | 43 914 38 Wheels . | . . . Hover 280 | . . 280 Flight . | . . . Fastest Speed 50 | 50 120 108 Average Speed 126 | 97 132 114 Slowest Speed 550 | 120 190 550 Overloaded Moves . | . . . Propulsion Burnouts . | . . . Robots Hopped . | . . . Cave-ins Triggered . | . . . Exploration Rate (%) 40 | 6 92 22 Regions Visited 2 Branch Regions . Pre-discovered Areas . | . . . Known Exits Taken . | . . . Unknown Exits Taken 2 | 1 1 . Scrap Searched . | . . . Spaces Dug . | . . . Terrain Destroyed 117 | . 117 . Melee . | . . . Projectile . | . . . AOE 117 | . 117 . Terrain Rammed . | . . . Walls Destroyed . | . . . Machines Disabled . | . . . Actions | -11 -10 -9 --------- Run | Yrd Mat Mat Total 1659 | 83 1131 445 Wait 152 | 4 81 67 Move 1296 | 62 913 321 Hop . | . . . Pick Up 46 | 6 31 9 Fast Attach 10 | . 7 3 Attach 20 | 5 11 4 Detach 1 | . 1 . Swap 11 | . 9 2 Drop 29 | . 19 10 Fire 80 | 6 58 16 Melee . | . . . Ram 13 | . . 13 Kick 1 | . 1 . Crush . | . . . Escape Stasis . | . . . Rewire . | . . . Trap . | . . . Miscellaneous . | . . . Route ------- -11/Scrapyard -10/Materials (discovered 5 exits: *Mat x3 / [*Min] / [Sub]) -9/Materials (discovered 1 exit: [*Sto]) History --------- Turn | Location | Event 2 | -11/Scrapyard | Met Revision 17 60 | -11/Scrapyard | Discovered new exit (range 8) 95 | -11/Scrapyard | Entered Materials 517 | -10/Materials | Build established: Scavenger-Mutant 776 | -10/Materials | Discovered new exit (range 14) 808 | -10/Materials | Discovered new exit (range 10) 809 | -10/Materials | Core integrity fell below 50% 967 | -10/Materials | Discovered new exit (range 6) 1045 | -10/Materials | Discovered new exit (range 16) 1517 | -10/Materials | Discovered new exit (range 9) 1576 | -10/Materials | Build established: Mutant 1631 | -10/Materials | Entered another Materials area 1631 | -9/Materials | Evolved 2 slots: Propulsion x2 1792 | -9/Materials | Discovered new exit (range 16) 2159 | -9/Materials | Core integrity fell below 50% 2171 | -9/Materials | Core integrity fell below 20% 2185 | -9/Materials | Destroyed by Y-45 Defender with Beam Rifle Last Messages --------------- Assault Rifle destroyed. Airjet destroyed. Slammed into Y-45 Defender. Lgt. Cannon destroyed. Y-45 Defender destroyed. Slammed into Y-45 Defender. Imp. Ion Engine destroyed. Slammed into Y-45 Defender. Structural Scanner destroyed. Slammed into Y-45 Defender. Destabilizing: System corrupted (+2). Critical hit (Burn: +37). Slammed into Y-45 Defender. K-01 Serf collects debris. Slammed into Y-45 Defender. Electrolysis Chamber disabled. K-01 Serf collects debris. Slammed into Y-45 Defender. K-01 Serf collects debris. Slammed into Y-45 Defender. Map ----- +----------------------------------------------------+ | | | | | | | | | | | | | | | | | | | | | | | | | | | | | ????????????????????????????????????????? | | ????????????????????????????????????????? | | ????????? # ???? ??????????????????????? | | ????????? # ????"T??????????????????????? | | ???????? # ""??????????????????????? | | ??????? #####+#################???????? | | ?????? ? + #################???????? | | # ### # ##???????? | | ####+###### ### ? # ]##???????? | | ## ??? /k"""g=##???????? | | ##??????? # ""[[##???????? | | ##??????? #@"""*%##???????? | | [ ####### ###Y =!##???????? | | [ #######+#######+###???????? | | """ """ # ###### ## ???????? | | """ """ # ##??## ##????????? | | """ """ # ##??## ##????????? | | # ###### ##????????? | | / ###### ##????????? | | # + ##????????? | | # #########????????? | | ############### #########????????? | | ############### ##???????????????? | | ?????????????############???????????????? | | ?????????????############???????????????? | | ????????????????????????????????????????? | | ????????????????????????????????????????? | | ????????????????????????????????????????? | | ????????????????????????????????????????? | | ????????????????????????????????????????? | | ????????????????????????????????????????? | | ????????????????????????????????????????? | | ????????????????????????????????????????? | | ????????????????????????????????????????? | | ????????????????????????????????????????? | | ????????????????????????????????????????? | +----------------------------------------------------+ Best States ------------- Heat Dissipation 39 Energy Generation 12 Energy Capacity 265 Matter Stores 300 Matter Capacity 300 Sight Range 16 Terrain Scan Range 14 Terrain Scan Density 10 Evasion (%) 55 Item Schematics ----------------- None Robot Schematics ------------------ None Fabricated ------------ Nothing Alien Tech Used ----------------- None Achievements -------------- Oops Challenges ------------ None Game ------ Seed ZioniteStasisMembrane Manual? 0 Play Time 00:43:50 Cumulative 2.4 hours Start 2024.04.28 @ 20:42:55 End 2024.04.28 @ 21:47:54 Sessions 1 Manual Loads 0 Difficulty Rogue Special Mode None Game No. 2 Rogue 2 Adventurer 0 Explorer 0 Win Type - Total 0 Types 0/0/0/0/0/0/0/0/0 Lore% 3 Gallery% 3 Achievement% 4 Wizard Run 0 Options --------- Layout 1 ASCII 0 Keyboard 0 Movement Mouse Keybinds 0 Fullscreen 2 Font 24/Smallcaps Map View 50x35 Zoom Use 0% Tactical HUD 0 Map Filters NONE Filters NONE Steam 1 RUN: f70cbeb0-5f44-471e-ab1a-0c5f8f415f69